Cogmind - Beta 16 @@@ ROGUE MODE // 2025.12.05 @ 17:14:17 Player: JuustuToug Result: Destroyed by 4X-BAP(R) with Subdweller Beam Cannon Performance ------------- Evolutions (0) 0 Regions Visited (2) 400 Robots Destroyed (21) 105 Value Destroyed (243) 243 Prototype IDs (0) 0 Alien Tech Used (0) 0 Bonus (0) 0 TOTAL SCORE: 748 Bonus ------- None Cogmind --------- Core Integrity 0/250 Matter 268/300 Energy 100/100 System Corruption 0% Temperature Cool (9) Movement Treading (240) Ox1 Location -10/Subcaves Parts ------- > --- POWER (1) -------- (None) > --- PROPULSION (2) --- Light Treads > --- UTILITY (2) ------ Large Storage Unit Sensor Array > --- WEAPON (2) ------- Assault Rifle Battle Cannon > --- INVENTORY (15) --- Ion Engine Structural Scanner Structural Scanner Signal Interpreter Makeshift Hacking Suite Makeshift System Shield Tractor Beam Subdweller Beam Cannon Light Cannon Light Cannon Light Cannon Light Cannon Grenade Launcher Hammer Peak State ------------ > --- POWER ------------ Ion Engine > --- PROPULSION ------- Light Treads Light Treads > --- UTILITY ---------- Large Storage Unit Sensor Array > --- WEAPON ----------- Assault Rifle Battle Cannon > --- INVENTORY -------- Ion Engine Structural Scanner Structural Scanner Signal Interpreter Makeshift Hacking Suite Makeshift System Shield Tractor Beam Subdweller Beam Cannon Light Cannon Light Cannon Light Cannon Light Cannon Grenade Launcher Hammer [Rating: 10] Favorites ----------- Power Ion Engine Engine Ion Engine Propulsion Light Treads Treads Light Treads Utility Seismic Detector Device Seismic Detector Storage Small Storage Unit Processor Signal Interpreter Weapon Assault Rifle Energy Gun EM Pulse Gun Ballistic Gun Assault Rifle Ballistic Cannon Light Cannon Launcher Grenade Launcher Impact Weapon Hammer Build | -11 -10 -10 ------- Run | Yrd Mat Sub Slots Evolved . | . . . Power . | . . . Propulsion . | . . . Utility . | . . . Weapon . | . . . Parts Attached 19 | 8 8 3 Power 2 | 1 1 . Engine 2 | 1 1 . Core . | . . . Reactor . | . . . Propulsion 2 | 2 . . Treads 2 | 2 . . Leg . | . . . Wheel . | . . . Hover . | . . . Flight . | . . . Utility 8 | 2 4 2 Device 5 | 1 2 2 Storage 2 | 1 1 . Processor 1 | . 1 . Hackware . | . . . Protection . | . . . Artifact . | . . . Weapon 7 | 3 3 1 Energy Gun 1 | 1 . . Energy Cannon . | . . . Ballistic Gun 2 | 2 . . Ballistic Cannon 2 | . 1 1 Launcher 1 | . 1 . Special Weapon . | . . . Impact Weapon 1 | . 1 . Slashing Weapon . | . . . Piercing Weapon . | . . . Special Melee Weapon . | . . . Unidentified Prototypes . | . . . Parts Lost 3 | . . 3 Power 1 | . . 1 Propulsion 1 | . . 1 Utility 1 | . . 1 Weapon . | . . . Highest Loss Streak 2 | . . 2 To Critical Strikes . | . . . Average Backups 8 | 2 7 11 Power . | . 1 1 Propulsion 1 | 1 1 . Utility 2 | . 1 4 Weapon 3 | . 3 5 Tool/Special . | . . . Unused Backups 11 | . 6 5 Power 2 | . 1 1 Propulsion 2 | . 2 . Utility 2 | . 1 1 Weapon 5 | . 2 3 Tool/Special . | . . . Average Slot Usage (%) 99 | . 100 98 Engine 14 | . 14 14 Treads 28 | . 28 28 Device 13 | . 13 12 Storage 14 | . 14 14 Ballistic Gun 22 | . 24 14 Ballistic Cannon 4 | . 2 14 Peak Build Rating 10 | 7 8 10 Average Rating 7 | 5 7 8 On Entrance 5 | . 7 8 Avg Prop Armor Cover (%) . | . . . Naked Turns . | . . . Heaviest Build 31 | 12 31 31 Greatest Support 40 | 40 40 40 Greatest Overweight (x) . | . . . Average Overweight (x) . | . . . Largest Inventory Capacity 15 | 8 15 15 Average Capacity 10 | 7 9 15 Most Carried 14 | 4 11 14 Average Carried 8 | 3 7 11 Final Capacity 15 | 8 15 15 Final Carried 14 | 4 11 14 Class Distribution -------------------- 100% | Mutant Dominant Class ---------------- Mutant | -10/Materials Mutant | -10/Subcaves Resources | -11 -10 -10 ----------- Run | Yrd Mat Sub Matter Collected 836 | 247 445 144 Remotely 127 | . 98 29 Salvage Created 516 | 80 411 25 Parts 40 | 8 32 . Haulers Intercepted 2 | . 2 . Recyclers Shooed 1 | . 1 . Parts Field Recycled . | . . . Retrieved Matter . | . . . Parts Self-Destructed 4 | . . 4 Prevented . | . . . Parts Restored . | . . . Kills | -11 -10 -10 ------- Run | Yrd Mat Sub Combat Hostiles Destroyed 11 | . 10 1 Guns 8 | . 7 1 AOE 3 | . 3 . Classes Destroyed 9 | 1 7 1 Worker 1 | . 1 . Builder 1 | . 1 . Tunneler 3 | 3 . . Hauler 2 | . 2 . Recycler 1 | . 1 . Watcher 2 | . 2 . Swarmer 9 | . 9 . Grunt 1 | . 1 . Subdweller 1 | . . 1 Best Kill Streak 6 | 3 6 1 Combat Bots Only 4 | . 4 1 Max Kills in Single Turn 3 | 1 3 1 Gunslinging . | . . . Exploded 3 | . 3 . Melee . | . . . Uniques/NPCs Destroyed . | . . . Combat | -11 -10 -10 -------- Run | Yrd Mat Sub Hostile Shots Fired 63 | . 38 25 Missed 20 | . 14 6 Hits 43 | . 24 19 Projectile 43 | . 24 19 Critical Strikes 1 | . 1 . Damage Taken 659 | . 184 475 Core 261 | . 67 194 Absorbed by Shields . | . . . Core Remaining (%) 100 | 100 . . Volleys Fired 69 | 5 50 14 Largest 2 | 2 2 2 Hottest 53 | 40 50 53 Shots Fired 137 | 10 99 28 Gun 117 | 10 93 14 Cannon 19 | . 5 14 Launcher 1 | . 1 . Special . | . . . Kinetic 136 | 10 98 28 Thermal . | . . . Explosive 1 | . 1 . Electromagnetic . | . . . Robot Hit Streak 12 | 1 7 12 Robot Miss Streak 7 | 3 7 2 Penetration Max . | . . . Secondary Targets . | . . . Shots Hit Robots 77 | 4 55 18 Core Hits 33 | 4 26 3 Critical Kills . | . . . Critical Parts Destroyed . | . . . Critical Strikes . | . . . Melee Attacks 1 | . 1 . Impact 1 | . 1 . Slashing . | . . . Piercing . | . . . Sneak Attacks . | . . . Combat Hostiles . | . . . Follow-up Attacks . | . . . Damage Inflicted 1051 | 41 791 219 Guns 693 | 41 576 76 Cannons 206 | . 63 143 Explosions 152 | . 152 . Melee . | . . . Ramming . | . . . Kinetic 899 | 41 639 219 Thermal . | . . . Explosive 152 | . 152 . Electromagnetic . | . . . Impact . | . . . Slashing . | . . . Piercing . | . . . Highest Corruption . | . . . Average Corruption . | . . . Corruption Purged . | . . . Corruption Blocked . | . . . Overload Shots . | . . . Overflow Damage . | . . . Projectiles . | . . . Explosions . | . . . Melee . | . . . Knockbacks 3 | . 1 2 Impact . | . . . Kinetic 3 | . 1 2 Secondary . | . . . Self-Inflicted Damage . | . . . Shots . | . . . Rammed . | . . . Targets Rammed . | . . . Kicked . | . . . Crushed . | . . . Highest Temperature . | . . . Average Temperature . | . . . Received Heat Transfer 153 | . . 153 Siege Activations . | . . . Martial Activations . | . . . Shielding Activations . | . . . Robots Disrupted . | . . . Combat Hostiles . | . . . Robots Corrupted . | . . . Combat Hostiles . | . . . Parts Fried . | . . . Impact Corruptions . | . . . Robots Melted . | . . . Combat Hostiles . | . . . Parts Melted 1 | . . 1 Heat Transferred . | . . . Parts Sabotaged . | . . . Parts Stolen . | . . . Parts Stripped . | . . . Power Chain Reactions . | . . . Alert | -11 -10 -10 ------- Run | Yrd Mat Sub Maximum Alert Level . | . . . Low Security (%) 100 | 100 100 . Level 1 . | . . . Level 2 . | . . . Level 3 . | . . . Level 4 . | . . . Level 5 . | . . . High Security . | . . . Max Security . | . . . Peak Influence 181 | 10 181 . Initial . | . . . Average 59 | 1 64 . Influence Increases 363 | 15 348 . Destroy 0b10 Robot/C 200 | . 200 . Destroy 0b10 Robot/NC 50 | 15 35 . Destroy Leader 48 | . 48 . Disable Machine 15 | . 15 . Destroy Structure 5 | . 5 . Lose Combat Pursuer 45 | . 45 . Influence Decreases 363 | 15 348 . Time Decay 363 | 15 348 . Squads Dispatched 2 | . 2 . Investigation . | . . . Extermination . | . . . Reinforcement 2 | . 2 . Assault . | . . . Garrison . | . . . Intercept . | . . . Searches Triggered . | . . . Construction Impeded . | . . . Haulers Reinforced . | . . . Active Scanning Responses . | . . . Cargo Convoy Interrupts . | . . . Stealth | -11 -10 -10 --------- Run | Yrd Mat Sub Distress Signals 4 | . 4 . Communications Jammed . | . . . Distress Signals . | . . . Times Spotted 26 | . 23 3 Peak Tracking Total 5 | . 5 2 Tactical Retreats 3 | . 3 . Traps | -11 -10 -10 ------- Run | Yrd Mat Sub Traps Triggered . | . . . Indirectly . | . . . Trap Hack Attempts . | . . . Triggered . | . . . Disarmed . | . . . Reprogrammed . | . . . Reused . | . . . Traps Extracted . | . . . Installed . | . . . Triggered . | . . . Machines | -11 -10 -10 ---------- Run | Yrd Mat Sub Machines Disabled 1 | . 1 . Max in Single Turn 1 | . 1 . Machines Repaired . | . . . Machines Dismantled . | . . . Machines Sabotaged . | . . . Overloaded Fab Kills . | . . . Hacking | -11 -10 -10 --------- Run | Yrd Mat Sub Machines Accessed 4 | . 4 . Terminals 1 | . 1 . Fabricators . | . . . Repair Stations 1 | . 1 . Recycling Units 2 | . 2 . Scanalyzers . | . . . Garrison Access . | . . . Total Hacks 11 | . 11 . Successful 6 | . 6 . Failed 5 | . 5 . Catastrophic . | . . . Database Lockouts . | . . . Manual 8 | . 8 . Terminals 5 | . 5 . Fabricators . | . . . Repair Stations 1 | . 1 . Recycling Units 5 | . 5 . Scanalyzers . | . . . Garrison Access . | . . . Terminal Hacks . | . . . Fabricator Hacks . | . . . Repair Station Hacks . | . . . Recycling Unit Hacks 2 | . 2 . Retrieve Components 2 | . 2 . Scanalyzer . | . . . Garrison Access Hacks . | . . . Unauthorized Hacks 4 | . 4 . Terminals 1 | . 1 . Skim 1 | . 1 . Fabricators . | . . . Repair Stations 1 | . 1 . Mechanics 1 | . 1 . Recycling Units 2 | . 2 . Reject 2 | . 2 . Scanalyzers . | . . . Garrison Access . | . . . Data Cores Recovered . | . . . Used . | . . . Hacking Detections 3 | . 3 . Full Trace Events . | . . . Feedback Events . | . . . Feedback Blocked . | . . . Robot Schematics Acquired . | . . . Robots Built . | . . . Authchips . | . . . Time . | . . . Total Robot Build Rating . | . . . Part Schematics Acquired . | . . . Parts Built . | . . . Authchips . | . . . Time . | . . . Total Part Build Rating . | . . . Part Studies Acquired . | . . . Parts Repaired . | . . . Time . | . . . Parts Recycled . | . . . Recycled Matter . | . . . Retrieved Matter . | . . . Retrieved Components 4 | . 4 . Parts Scanalyzed . | . . . Part Schematics Acquired . | . . . Parts Damaged . | . . . Bothacking | -11 -10 -10 ------------ Run | Yrd Mat Sub Used RIF Installer . | . . . Robots Hacked . | . . . Non-combat . | . . . Combat . | . . . Robot Hacks Applied . | . . . Relay Couplers Released . | . . . Fabnet Peak Effective % . | . . . Robots Rewired . | . . . Allies Hacked . | . . . Hacks Repelled . | . . . Allies | -11 -10 -10 -------- Run | Yrd Mat Sub Total Allies . | . . . Largest Group . | . . . Highest-Rated Group . | . . . Highest-Rated Ally . | . . . Total Orders . | . . . Ally Attacks . | . . . Total Damage . | . . . Kills . | . . . Allies Corrupted . | . . . Allies Melted . | . . . Intel | -11 -10 -10 ------- Run | Yrd Mat Sub Active Infowar (turns) 1476 | 26 1199 251 Sensors 58 | . . 58 Structural 102 | . 24 78 Seismic 1316 | 26 1175 115 Robot Analysis Total . | . . . Derelict Logs Recovered . | . . . Drone Launches . | . . . Drone Recoveries . | . . . Exploration | -11 -10 -10 ------------- Run | Yrd Mat Sub Turns Passed 1613 | 119 1214 280 Spaces Moved 732 | 53 565 114 Core 6 | 6 . . Treads 726 | 47 565 114 Legs . | . . . Wheels . | . . . Hover . | . . . Flight . | . . . Fastest Speed 50 | 50 160 160 Average Speed 159 | 147 160 160 Slowest Speed 160 | 160 160 160 Overloaded Moves . | . . . Propulsion Burnouts . | . . . Robots Hopped . | . . . Potential Cave-ins . | . . . Cave-ins Triggered . | . . . Exploration Rate (%) 28 | 4 77 4 Regions Visited 2 Branch Regions 1 Pre-discovered Areas . | . . . Known Exits Taken . | . . . Unknown Exits Taken 2 | 1 1 . Scrap Searched 3 | . . 3 Spaces Dug 5 | . 5 . Terrain Destroyed 6 | . 5 1 Melee . | . . . Projectile 1 | . . 1 AOE 5 | . 5 . Terrain Rammed . | . . . Walls Destroyed . | . . . Machines Disabled . | . . . Actions | -11 -10 -10 --------- Run | Yrd Mat Sub Total 1042 | 81 778 183 Wait 175 | 12 118 45 Move 730 | 52 564 114 Hop . | . . . Pick Up 23 | 4 15 4 Fast Attach 7 | 7 . . Attach 2 | . . 2 Detach 1 | . . 1 Swap 25 | 1 21 3 Drop 9 | . 9 . Fire 69 | 5 50 14 Melee 1 | . 1 . Ram . | . . . Kick . | . . . Crush . | . . . Escape Stasis . | . . . Rewire . | . . . Trap . | . . . Miscellaneous . | . . . Route ------- -11/Scrapyard -10/Materials (discovered 4 exits: *Mat x2 / [*Min] / [*Sub]) -10/Subcaves History --------- Turn | Location | Event 8 | -11/Scrapyard | Discovered new exit (range 14) 120 | -11/Scrapyard | Entered Materials 311 | -10/Materials | Build established: Mutant 533 | -10/Materials | Discovered new exit (range 15) 706 | -10/Materials | Discovered new exit (range 5) 713 | -10/Materials | Identified exit to Materials 797 | -10/Materials | Discovered exit to Materials (range 16) 1313 | -10/Materials | Discovered new exit (range 6) 1334 | -10/Materials | Entered Subcaves 1335 | -10/Subcaves | Approached by a straggling Scientist 1604 | -10/Subcaves | Core integrity fell below 50% 1610 | -10/Subcaves | Core integrity fell below 20% 1614 | -10/Subcaves | Destroyed by 4X-BAP(R) with Subdweller Beam Cannon Last Messages --------------- 01572_ Found Mak. System Shield. 01572_ Found 70 Matter. 01573_ Acquired 70 matter. 01573_ Searching scrap... 01573_ Found Mak. Hacking Suite. 01573_ Found 53 Matter. 01574_ Acquired 45 matter. 01575_ Searching scrap... 01575_ Found Battle Cannon. 01575_ Found Riot Gun. 01575_ Found 67 Matter. 01580_ Acquired Battle Cannon. 01582_ 9Q-FAU(z): "She is not going to be happy we haven't found any suitable candidates yet." 01582_ Acquired Sub. Beam Cannon. 01587_ Acquired Mak. Hacking Suite. U4-RC7(c): "I think it's somewhere west of here" 01589_ Acquired Mak. System Shield. 01610_ Ion Engine destroyed. 01610_ Lgt. Treads destroyed. Map ----- +----------------------------------------------------+ | ???????????????????????????????????????????? | | ???????????????????????????????????????????? | | ???????????????????????????????????????????? | | ???????????????????????????????????????????? | | ???????????????????????????????????????????? | | ???????????????????????????????????????????? | | ???????????????????????????????????????????? | | ???????????????????????????????????????????? | | ???????????????????????????????????????????? | | ???????????????????????????????????????????? | | ???????????????????????????????????????????? | | ???????????????????????????????????????????? | | ???????????????????????????????????????????? | | ???????????????????????????????????????????? | | ???????????????????????????????????????????? | | ???????????????????????#???????????????????? | | ??????????????????????? #####??????????????? | | ??????????????????????? % ##?????????????? | | ??????????????????????? ??????????????? | | ????????????????????????RR ??????????????? | | ???????????????????????? ???????????????? | | ???????????????????????? ???????????????? | | ???????????????????????# #???????????????? | | ???????????????????????## #???????????????? | | ???????????????????????#; #???????????????? | | ???????????????????##### @ #???????????????? | | ??????????????????##& "## #???????????????? | | ??????????????????#"%# #< ###??????????????? | | ??????????????????# # ? ####?????????????? | | ??????????????????#["# #< ####????????????? | | ??????????????????#%#### ###????????????? | | ??????????????????###### ##????????????? | | ????????????????????### ##????????????? | | ????????????????????## ##????????????? | | ????????????????????### ##????????????? | | ?????????????????????##; ##????????????? | | ??????????????????????### ###????????????? | | ????############????##### ###????????????? | | ???##############??###### ##?????????????? | | ???### #### ######## ##?????????????? | | ???## ###### ###????????????? | | ???### # ## ###????????????? | | ???### ## ##????????????? | | ????### ## ##????????????? | | ????######## ## # ###????????????? | | ?????################# ###????????????? | | ??????????############# ##????????????? | | ????????????????????### ##????????????? | | ????????????????????### ##????????????? | | ????????????????????### ##????????????? | +----------------------------------------------------+ Best States ------------- Heat Dissipation 25 Energy Generation 10 Energy Capacity 250 Matter Stores 300 Matter Capacity 300 Sight Range 16 Robot Scan Range 14 Terrain Scan Density 10 Evasion (%) 40 Recoil Reduction 2 Item Schematics ----------------- None Robot Schematics ------------------ None Fabricated ------------ Nothing Repaired ---------- Nothing Studied --------- None Alien Tech Used ----------------- None Achievements -------------- None Challenges ------------ None Game ------ Seed BombAerolevCharge Manual? 0 Play Time 00:08:41 Cumulative 218.5 hours Start 2025.12.05 @ 17:06:55 End 2025.12.05 @ 17:14:17 Sessions 1 Manual Loads 0 Difficulty Rogue Special Mode None Game No. 150 Rogue 150 Adventurer 0 Explorer 0 Win Type - Total 7 Types 5/0/1/1/0/0/0/0/0/0 Lore% 84 Gallery% 76 Achievement% 60 Wizard Run 0 Options --------- Layout 1 ASCII 0 Keyboard 0 Movement Mouse Keybinds 0 Fullscreen 2 Font 24/Smallcaps Map View 50x35 Zoom Use 0% Tactical HUD 1 Map Filters NONE Filters NONE Steam 1 RUN: 3929cb16-ad97-43c9-8a28-25877706b4a9